[Event "ONJK-B 2019"]
[Site "Borne"]
[Date "2019.08.06"]
[Round "3.7"]
[White "Heskes, Johan"]
[Black "De Putter, Nina"]
[Result "1/2-1/2"]
[ECO "D35"]
[WhiteElo "1535"]
[BlackElo "1631"]
[Annotator "NA"]
[PlyCount "83"]
[EventDate "2019.08.05"]
[EventType "swiss"]
[EventCountry "NED"]
[SourceTitle "playchess.com"]
[Source "ChessBase"]
[SourceQuality "1"]
[TimeControl "5400+30"]

1. d4 {[%emt 0:00:00]} d5 {[%emt 0:00:00]} 2. c4 {[%emt 0:00:00]} e6 {[%emt 0:00:00]} 3. Nc3 {[%emt 0:00:00]} Nf6 {[%emt 0:00:00]} 4. Bf4 {[%emt 0:00:00]} c5 {[%emt 0:00:00]} 5. e3 {[%emt 0:00:04]} a6 {[%emt 0:01:00]} 6. dxc5 {[%emt 0:00:57]} Bxc5 {[%emt 0:00:22]} 7. cxd5 {[%emt 0:00:21]} exd5 {[%emt 0:02:03]} 8. Nf3 {[%emt 0:00:52]} O-O {[%emt 0:01:44]} 9. Be2 {[%emt 0:00:41]} Nc6 {[%emt 0:00:34]} 10. Bg5 {[%emt 0:02:02]} Be7 {[%emt 0:04:10]} 11. O-O {[%emt 0:02:49]} Be6 {[%emt 0:01:23]} 12. Nd4 {[%emt 0:01:01]} Qc7 {[%emt 0:04:15]} 13. Rc1 {[%emt 0:04:02]} Rfd8 {[%emt 0:03:46]} 14. Re1 {[%emt 0:06:08]} Rac8 {[%emt 0:13:57]} 15. Bf3 {[%emt 0:03:08]} Nxd4 {[%emt 0:10:34]} 16. exd4 {[%emt 0:01:14]} Qb6 {[%emt 0:04:31]} 17. Bxf6 {[%emt 0:10:11]} Bxf6 {[%emt 0:01:09]} 18. Nxd5 {[%emt 0:00:39]} Bxd5 {[%emt 0:05:21]} 19. Rxc8 {[%emt 0:00:43]} Rxc8 {[%emt 0:01:39]} 20. Bxd5 {[%emt 0:01:21]} Qxb2 {[%emt 0:01:41]} 21. Qa4 {[%emt 0:03:05]} Qb5 {[%emt 0:04:15]} 22. Qxb5 {[%emt 0:01:28]} axb5 {[%emt 0:00:39]} 23. Bxb7 {[%emt 0:00:07]} Rb8 {[%emt 0:02:14]} 24. d5 {[%emt 0:01:05]} Kf8 {[%emt 0:01:37]} 25. Bc6 {[%emt 0:00:17]} Be7 {[%emt 0:01:08]} 26. g4 {[%emt 0:00:35]} b4 {[%emt 0:00:19]} 27. Kg2 {[%emt 0:00:24]} Rb6 {[%emt 0:01:10]} 28. f4 {[%emt 0:00:29]} f6 {[%emt 0:00:55]} 29. Rb1 {[%emt 0:00:39]} Ra6 {[%emt 0:00:00]} 30. Rb2 {[%emt 0:00:18]} Ra3 {[%emt 0:00:00]} 31. Rd2 {[%emt 0:01:23]} Bd6 {[%emt 0:00:51]} 32. f5 {[%emt 0:01:29]} Ke7 {[%emt 0:01:24]} 33. Bb5 {[%emt 0:01:42]} Be5 {[%emt 0:02:53]} 34. Bc4 {[%emt 0:00:16]} Re3 {[%emt 0:05:56]} 35. Re2 {[%emt 0:03:24]} Rxe2+ {[%emt 0:00:24]} 36. Bxe2 {[%emt 0:00:08]} Kd6 {[%emt 0:00:28]} 37. Bc4 {[%emt 0:00:12]} Kc5 {[%emt 0:00:25]} 38. Bb3 {[%emt 0:00:11]} Kd4 {[%emt 0:00:28]} 39. h4 {[%emt 0:00:12]} Ke4 {[%emt 0:00:55]} 40. Kh3 {[%emt 0:00:28]} Kf4 {[%emt 0:00:34]} 41. Bc2 {[%emt 0:00:20]} h6 {[%emt 0:01:03]} 42. h5 {[%emt 0:01:35]} 1/2-1/2

[Event "ONJK-B 2019"]
[Site "Borne"]
[Date "2019.08.06"]
[Round "3.8"]
[White "Decruyenaere, Laura"]
[Black "Baselmans, Daan"]
[Result "0-1"]
[ECO "C01"]
[WhiteElo "1382"]
[BlackElo "1720"]
[Annotator "NA"]
[PlyCount "116"]
[EventDate "2019.08.05"]
[EventType "swiss"]
[EventCountry "NED"]
[SourceTitle "playchess.com"]
[Source "ChessBase"]
[SourceQuality "1"]
[TimeControl "5400+30"]

1. e4 {[%emt 0:00:00]} e6 {[%emt 0:00:00]} 2. d4 {[%emt 0:00:00]} d5 {[%emt 0:00:00]} 3. exd5 {[%emt 0:00:00]} exd5 {[%emt 0:00:00]} 4. Bd3 {[%emt 0:00:00]} Bd6 {[%emt 0:00:00]} 5. Qf3 {[%emt 0:00:14]} c6 {[%emt 0:00:51]} 6. Ne2 {[%emt 0:00:32]} Ne7 {[%emt 0:01:24]} 7. Ng3 {[%emt 0:02:51]} Nd7 {[%emt 0:01:39]} 8. c3 {[%emt 0:01:43]} h6 {[%emt 0:02:37]} 9. O-O {[%emt 0:04:28]} Nf6 {[%emt 0:00:30]} 10. h3 {[%emt 0:01:13]} Be6 {[%emt 0:03:36]} 11. Bf4 {[%emt 0:05:50]} Qc7 {[%emt 0:04:37]} 12. Bxd6 {[%emt 0:08:28]} Qxd6 {[%emt 0:00:05]} 13. Nd2 {[%emt 0:00:42]} O-O-O {[%emt 0:01:19]} 14. b3 {[%emt 0:04:24]} Nh7 {[%emt 0:01:58]} 15. a4 {[%emt 0:06:58]} Rdf8 {[%emt 0:04:07]} 16. b4 {[%emt 0:19:56]} f5 {[%emt 0:02:18]} 17. b5 {[%emt 0:04:34]} g5 {[%emt 0:02:29]} 18. Ne2 {[%emt 0:09:45]} g4 {[%emt 0:02:08]} 19. Qf4 {[%emt 0:02:15]} Qd7 {[%emt 0:03:10]} 20. bxc6 {[%emt 0:06:43]} Nxc6 {[%emt 0:00:00]} 21. h4 {[%emt 0:00:00]} Nf6 {[%emt 0:00:12]} 22. Bb5 {[%emt 0:05:38]} Ne4 {[%emt 0:03:20]} 23. Nb3 {[%emt 0:04:45]} a6 {[%emt 0:02:31]} 24. Bd3 {[%emt 0:05:01]} Ne7 {[%emt 0:02:26]} 25. Rfb1 {[%emt 0:01:43]} Ng6 {[%emt 0:01:29]} 26. Qc1 {[%emt 0:02:29]} Qe7 {[%emt 0:07:31]} 27. Nf4 {[%emt 0:01:58]} Nxf4 {[%emt 0:04:59]} 28. Qxf4 {[%emt 0:00:08]} Kd8 {[%emt 0:05:12]} 29. Nc5 {[%emt 0:01:05]} Nxc5 {[%emt 0:00:47]} 30. dxc5 {[%emt 0:00:08]} Qc7 {[%emt 0:02:19]} 31. Qxc7+ {[%emt 0:00:21]} Kxc7 {[%emt 0:00:05]} 32. Re1 {[%emt 0:00:16]} Re8 {[%emt 0:01:13]} 33. Rab1 {[%emt 0:00:52]} Bd7 {[%emt 0:00:30]} 34. Rxe8 {[%emt 0:00:41]} Rxe8 {[%emt 0:00:07]} 35. a5 {[%emt 0:00:41]} Re5 {[%emt 0:05:32]} 36. Kf1 {[%emt 0:00:23]} Bc6 {[%emt 0:11:48]} 37. Re1 {[%emt 0:00:35]} Rxe1+ {[%emt 0:00:18]} 38. Kxe1 {[%emt 0:00:06]} Bd7 {[%emt 0:00:12]} 39. Ke2 {[%emt 0:00:47]} Kc6 {[%emt 0:00:08]} 40. Ke3 {[%emt 0:00:34]} Kxc5 {[%emt 0:01:12]} 41. Kf4 {[%emt 0:00:25]} b5 {[%emt 0:01:19]} 42. Bxf5 {[%emt 0:00:49]} Bxf5 {[%emt 0:00:43]} 43. Kxf5 {[%emt 0:00:04]} Kc4 {[%emt 0:02:58]} 44. Kxg4 {[%emt 0:00:22]} Kxc3 {[%emt 0:00:07]} 45. f4 {[%emt 0:00:08]} d4 {[%emt 0:00:10]} 46. f5 {[%emt 0:00:34]} d3 {[%emt 0:00:05]} 47. f6 {[%emt 0:00:22]} d2 {[%emt 0:00:04]} 48. Kh5 {[%emt 0:00:37]} d1=Q+ {[%emt 0:00:40]} 49. Kxh6 {[%emt 0:00:09]} Qf1 {[%emt 0:02:34]} 50. Kg7 {[%emt 0:00:36]} Qxg2+ {[%emt 0:00:12]} 51. Kf7 {[%emt 0:00:34]} Qg4 {[%emt 0:00:12]} 52. Ke7 {[%emt 0:01:05]} Qxh4 {[%emt 0:00:11]} 53. Ke6 {[%emt 0:00:17]} Qe4+ {[%emt 0:00:13]} 54. Kf7 {[%emt 0:00:19]} b4 {[%emt 0:00:26]} 55. Kg7 {[%emt 0:00:33]} b3 {[%emt 0:00:38]} 56. f7 {[%emt 0:00:08]} Qf5 {[%emt 0:00:22]} 57. f8=Q {[%emt 0:00:17]} Qxf8+ {[%emt 0:00:03]} 58. Kxf8 {[%emt 0:00:11]} b2 {[%emt 0:00:02]} 0-1

[Event "ONJK-B 2019"]
[Site "Borne"]
[Date "2019.08.06"]
[Round "3.9"]
[White "Borgelioen, Elise"]
[Black "Arnold, Kiri"]
[Result "0-1"]
[ECO "B30"]
[WhiteElo "1342"]
[BlackElo "1590"]
[Annotator "NA"]
[PlyCount "84"]
[EventDate "2019.08.05"]
[EventType "swiss"]
[EventCountry "NED"]
[SourceTitle "playchess.com"]
[Source "ChessBase"]
[SourceQuality "1"]
[TimeControl "5400+30"]

1. e4 {[%emt 0:00:00]} c5 {[%emt 0:00:00]} 2. Nf3 {[%emt 0:00:00]} Nc6 {[%emt 0:00:00]} 3. Bb5 {[%emt 0:00:53]} Nf6 {[%emt 0:00:09]} 4. d3 {[%emt 0:00:59]} d6 {[%emt 0:02:21]} 5. Bxc6+ {[%emt 0:00:56]} bxc6 {[%emt 0:00:02]} 6. O-O {[%emt 0:01:02]} g6 {[%emt 0:01:33]} 7. Be3 {[%emt 0:02:35]} Bg7 {[%emt 0:00:30]} 8. c3 {[%emt 0:01:31]} O-O {[%emt 0:00:48]} 9. Nbd2 {[%emt 0:00:42]} Rb8 {[%emt 0:00:42]} 10. Qc2 {[%emt 0:01:13]} Ba6 {[%emt 0:01:24]} 11. Rab1 {[%emt 0:03:48]} Qc7 {[%emt 0:00:43]} 12. Rfe1 {[%emt 0:03:33]} Nd7 {[%emt 0:03:26]} 13. Nb3 {[%emt 0:03:25]} c4 {[%emt 0:01:24]} 14. dxc4 {[%emt 0:05:32]} Bxc4 {[%emt 0:01:10]} 15. Bd4 {[%emt 0:07:53]} Bxb3 {[%emt 0:08:48]} 16. axb3 {[%emt 0:01:02]} c5 {[%emt 0:02:28]} 17. Bxg7 {[%emt 0:04:15]} Kxg7 {[%emt 0:00:27]} 18. c4 {[%emt 0:03:47]} Qb7 {[%emt 0:00:50]} 19. Re3 {[%emt 0:07:26]} e6 {[%emt 0:01:34]} 20. Rbe1 {[%emt 0:04:51]} Rfd8 {[%emt 0:02:18]} 21. Nd2 {[%emt 0:07:56]} Ne5 {[%emt 0:02:32]} 22. f4 {[%emt 0:02:30]} Nc6 {[%emt 0:00:17]} 23. Kh1 {[%emt 0:03:06]} Kg8 {[%emt 0:00:48]} 24. Qc3 {[%emt 0:05:06]} Nd4 {[%emt 0:02:03]} 25. Rf1 {[%emt 0:05:21]} Qb4 {[%emt 0:04:33]} 26. Qxb4 {[%emt 0:01:00]} Rxb4 {[%emt 0:00:11]} 27. e5 {[%emt 0:00:55]} dxe5 {[%emt 0:01:14]} 28. fxe5 {[%emt 0:00:18]} Rdb8 {[%emt 0:00:17]} 29. Rd1 {[%emt 0:02:43]} Nxb3 {[%emt 0:01:17]} 30. Nxb3 {[%emt 0:02:28]} Rxb3 {[%emt 0:00:23]} 31. Rxb3 {[%emt 0:00:20]} Rxb3 {[%emt 0:00:02]} 32. Rd2 {[%emt 0:01:01]} a5 {[%emt 0:00:16]} 33. Kg1 {[%emt 0:00:23]} Kg7 {[%emt 0:01:42]} 34. Kf2 {[%emt 0:00:34]} a4 {[%emt 0:02:25]} 35. g3 {[%emt 0:00:42]} a3 {[%emt 0:00:15]} 36. bxa3 {[%emt 0:00:15]} Rxa3 {[%emt 0:00:01]} 37. Rc2 {[%emt 0:00:47]} h5 {[%emt 0:00:33]} 38. h3 {[%emt 0:01:02]} h4 {[%emt 0:01:51]} 39. gxh4 {[%emt 0:00:50]} Rxh3 {[%emt 0:00:05]} 40. Kg2 {[%emt 0:00:42]} Rxh4 {[%emt 0:00:15]} 41. Kf3 {[%emt 0:00:12]} f6 {[%emt 0:01:13]} 42. exf6+ {[%emt 0:00:28]} Kxf6 {[%emt 0:00:02]} 0-1

[Event "ONJK-B 2019"]
[Site "Borne"]
[Date "2019.08.06"]
[Round "3.10"]
[White "Nopper, Louis"]
[Black "Schoonhoven, Mark"]
[Result "1-0"]
[ECO "A57"]
[WhiteElo "1579"]
[BlackElo "1275"]
[Annotator "NA"]
[PlyCount "67"]
[EventDate "2019.08.05"]
[EventType "swiss"]
[EventCountry "NED"]
[SourceTitle "playchess.com"]
[Source "ChessBase"]
[SourceQuality "1"]
[TimeControl "5400+30"]

1. c4 {[%emt 0:00:00]} Nf6 {[%emt 0:00:00]} 2. Nc3 {[%emt 0:00:00]} g6 {[%emt 0:00:04]} 3. Nf3 {[%emt 0:00:02]} Bg7 {[%emt 0:00:20]} 4. d4 {[%emt 0:00:25]} d6 {[%emt 0:00:59]} 5. e4 {[%emt 0:00:17]} c5 {[%emt 0:00:17]} 6. d5 {[%emt 0:01:30]} O-O {[%emt 0:00:19]} 7. Be2 {[%emt 0:00:25]} a6 {[%emt 0:01:21]} 8. O-O {[%emt 0:00:37]} b5 {[%emt 0:00:43]} 9. cxb5 {[%emt 0:00:59]} axb5 {[%emt 0:00:04]} 10. Bxb5 {[%emt 0:00:23]} Ba6 {[%emt 0:00:12]} 11. Bxa6 {[%emt 0:01:11]} Rxa6 {[%emt 0:00:21]} 12. Bd2 {[%emt 0:01:06]} Nbd7 {[%emt 0:00:16]} 13. Qc1 {[%emt 0:02:17]} Qb6 {[%emt 0:04:34]} 14. Rb1 {[%emt 0:06:11]} Rb8 {[%emt 0:02:19]} 15. b3 {[%emt 0:03:31]} Ng4 {[%emt 0:00:55]} 16. Qc2 {[%emt 0:18:07]} Qa7 {[%emt 0:05:21]} 17. a4 {[%emt 0:02:27]} Qb7 {[%emt 0:03:34]} 18. Nb5 {[%emt 0:00:45]} Nde5 {[%emt 0:03:58]} 19. Ne1 {[%emt 0:10:22]} Rc8 {[%emt 0:11:03]} 20. h3 {[%emt 0:05:36]} Nf6 {[%emt 0:01:05]} 21. f4 {[%emt 0:01:56]} Ned7 {[%emt 0:00:49]} 22. Nf3 {[%emt 0:02:23]} Ne8 {[%emt 0:07:59]} 23. Bc3 {[%emt 0:05:03]} Bxc3 {[%emt 0:02:53]} 24. Nxc3 {[%emt 0:00:10]} Qa7 {[%emt 0:00:25]} 25. Kh1 {[%emt 0:01:10]} Ndf6 {[%emt 0:01:48]} 26. Nd2 {[%emt 0:02:30]} Ng7 {[%emt 0:04:23]} 27. Nc4 {[%emt 0:04:47]} Ne6 {[%emt 0:00:32]} 28. dxe6 {[%emt 0:01:33]} fxe6 {[%emt 0:00:11]} 29. Rbd1 {[%emt 0:03:52]} Rf8 {[%emt 0:01:00]} 30. Rf3 {[%emt 0:01:58]} Qb7 {[%emt 0:02:27]} 31. Ne3 {[%emt 0:03:25]} Rb6 {[%emt 0:01:06]} 32. e5 {[%emt 0:04:07]} Nh5 {[%emt 0:00:27]} 33. exd6 {[%emt 0:01:05]} exd6 {[%emt 0:00:16]} 34. Nb5 {[%emt 0:01:38]} 1-0

[Event "ONJK-B 2019"]
[Site "Borne"]
[Date "2019.08.06"]
[Round "3.11"]
[White "Van Borren, Matthijs"]
[Black "Michielsen, Lies"]
[Result "0-1"]
[ECO "B34"]
[WhiteElo "1339"]
[BlackElo "1489"]
[Annotator "NA"]
[PlyCount "84"]
[EventDate "2019.08.05"]
[EventType "swiss"]
[EventCountry "NED"]
[SourceTitle "playchess.com"]
[Source "ChessBase"]
[SourceQuality "1"]
[TimeControl "5400+30"]

1. e4 {[%emt 0:00:00]} c5 {[%emt 0:00:00]} 2. Nf3 {[%emt 0:00:00]} Nc6 {[%emt 0:00:00]} 3. d4 {[%emt 0:00:00]} cxd4 {[%emt 0:00:00]} 4. Nxd4 {[%emt 0:00:00]} Nf6 {[%emt 0:00:23]} 5. Nc3 {[%emt 0:00:50]} g6 {[%emt 0:02:38]} 6. Be3 {[%emt 0:00:48]} Bg7 {[%emt 0:06:37]} 7. Qd2 {[%emt 0:01:34]} O-O {[%emt 0:01:09]} 8. Be2 {[%emt 0:00:45]} d5 {[%emt 0:02:17]} 9. f3 {[%emt 0:03:54]} dxe4 {[%emt 0:12:10]} 10. Nxc6 {[%emt 0:08:48]} bxc6 {[%emt 0:00:43]} 11. O-O-O {[%emt 0:06:12]} Qxd2+ {[%emt 0:00:54]} 12. Rxd2 {[%emt 0:00:19]} exf3 {[%emt 0:00:23]} 13. Bxf3 {[%emt 0:00:15]} Bb7 {[%emt 0:01:54]} 14. Rhd1 {[%emt 0:02:42]} e6 {[%emt 0:05:16]} 15. Be2 {[%emt 0:10:16]} Nd5 {[%emt 0:01:51]} 16. Nxd5 {[%emt 0:00:25]} cxd5 {[%emt 0:00:59]} 17. b3 {[%emt 0:07:14]} Rfc8 {[%emt 0:04:43]} 18. Kb1 {[%emt 0:05:00]} Bc3 {[%emt 0:06:48]} 19. Bd4 {[%emt 0:05:13]} Bxd2 {[%emt 0:00:46]} 20. Rxd2 {[%emt 0:00:06]} Re8 {[%emt 0:02:56]} 21. Bb5 {[%emt 0:00:57]} Re7 {[%emt 0:01:17]} 22. Bf6 {[%emt 0:01:12]} Rc7 {[%emt 0:00:19]} 23. c4 {[%emt 0:03:36]} dxc4 {[%emt 0:02:11]} 24. Bxc4 {[%emt 0:00:22]} Rac8 {[%emt 0:09:23]} 25. Kb2 {[%emt 0:04:42]} Bd5 {[%emt 0:04:50]} 26. Be5 {[%emt 0:02:49]} Rc6 {[%emt 0:02:39]} 27. Bxd5 {[%emt 0:01:47]} exd5 {[%emt 0:00:33]} 28. Rxd5 {[%emt 0:00:13]} Rc2+ {[%emt 0:07:36]} 29. Ka3 {[%emt 0:00:16]} Rxg2 {[%emt 0:03:02]} 30. Rd7 {[%emt 0:00:16]} Ra8 {[%emt 0:00:35]} 31. Bd4 {[%emt 0:00:44]} a6 {[%emt 0:00:40]} 32. Be5 {[%emt 0:00:21]} Re2 {[%emt 0:00:47]} 33. Bb2 {[%emt 0:00:37]} Rxh2 {[%emt 0:00:15]} 34. Be5 {[%emt 0:00:06]} Re2 {[%emt 0:00:05]} 35. Bb2 {[%emt 0:00:09]} h5 {[%emt 0:00:19]} 36. Rd4 {[%emt 0:00:11]} Rae8 {[%emt 0:01:00]} 37. Rh4 {[%emt 0:00:13]} R2e4 {[%emt 0:00:23]} 38. Rh3 {[%emt 0:00:04]} f5 {[%emt 0:00:46]} 39. Rd3 {[%emt 0:00:05]} f4 {[%emt 0:00:19]} 40. Rd6 {[%emt 0:00:13]} R4e6 {[%emt 0:00:08]} 41. Rd7 {[%emt 0:00:05]} f3 {[%emt 0:00:14]} 42. Rg7+ {[%emt 0:00:11]} Kf8 {[%emt 0:00:14]} 0-1

[Event "ONJK-B 2019"]
[Site "Borne"]
[Date "2019.08.06"]
[Round "3.12"]
[White "Berghuis, Rowin"]
[Black "Maas, Tristan"]
[Result "1-0"]
[ECO "C65"]
[WhiteElo "1081"]
[BlackElo "1467"]
[Annotator "NA"]
[PlyCount "43"]
[EventDate "2019.08.05"]
[EventType "swiss"]
[EventCountry "NED"]
[SourceTitle "playchess.com"]
[Source "ChessBase"]
[SourceQuality "1"]
[TimeControl "5400+30"]

1. e4 {[%emt 0:00:00]} e5 {[%emt 0:00:00]} 2. Nf3 {[%emt 0:00:00]} Nc6 {[%emt 0:00:00]} 3. Bb5 {[%emt 0:00:31]} d6 {[%emt 0:00:29]} 4. c3 {[%emt 0:00:01]} Nf6 {[%emt 0:01:32]} 5. Qe2 {[%emt 0:01:27]} Be7 {[%emt 0:03:35]} 6. d4 {[%emt 0:01:08]} exd4 {[%emt 0:01:42]} 7. cxd4 {[%emt 0:00:14]} O-O {[%emt 0:00:11]} 8. h3 {[%emt 0:01:06]} a6 {[%emt 0:01:27]} 9. Bxc6 {[%emt 0:00:25]} bxc6 {[%emt 0:00:08]} 10. O-O {[%emt 0:00:34]} Rb8 {[%emt 0:08:42]} 11. Nc3 {[%emt 0:01:59]} Nd7 {[%emt 0:07:19]} 12. Rd1 {[%emt 0:01:23]} c5 {[%emt 0:01:34]} 13. dxc5 {[%emt 0:02:44]} Nxc5 {[%emt 0:01:11]} 14. e5 {[%emt 0:02:36]} Bb7 {[%emt 0:06:44]} 15. Nd4 {[%emt 0:03:51]} Qc8 {[%emt 0:05:01]} 16. Qh5 {[%emt 0:05:14]} dxe5 {[%emt 0:04:41]} 17. Qxe5 {[%emt 0:03:47]} Bd6 {[%emt 0:02:35]} 18. Qg5 {[%emt 0:03:02]} Ne6 {[%emt 0:03:06]} 19. Qg4 {[%emt 0:01:37]} Nf4 {[%emt 0:06:16]} 20. Nf5 {[%emt 0:02:05]} Ng6 {[%emt 0:11:13]} 21. h4 {[%emt 0:05:16]} Nxh4 {[%emt 0:02:09]} 22. Qxg7# {[%emt 0:00:46]} 1-0

[Event "ONJK-B 2019"]
[Site "Borne"]
[Date "2019.08.06"]
[Round "3.13"]
[White "Winter, Ynse"]
[Black "Tiggelman, Laura"]
[Result "0-1"]
[ECO "E94"]
[WhiteElo "1021"]
[BlackElo "1436"]
[Annotator "NA"]
[PlyCount "92"]
[EventDate "2019.08.05"]
[EventType "swiss"]
[EventCountry "NED"]
[SourceTitle "playchess.com"]
[Source "ChessBase"]
[SourceQuality "1"]
[TimeControl "5400+30"]

1. d4 {[%emt 0:00:00]} Nf6 {[%emt 0:00:00]} 2. c4 {[%emt 0:00:00]} g6 {[%emt 0:00:00]} 3. Nc3 {[%emt 0:00:00]} Bg7 {[%emt 0:00:00]} 4. Nf3 {[%emt 0:00:33]} d6 {[%emt 0:00:00]} 5. e4 {[%emt 0:00:34]} O-O {[%emt 0:00:10]} 6. Be2 {[%emt 0:00:21]} Nbd7 {[%emt 0:00:37]} 7. O-O {[%emt 0:01:07]} e5 {[%emt 0:00:16]} 8. d5 {[%emt 0:00:38]} Nh5 {[%emt 0:00:56]} 9. b4 {[%emt 0:01:22]} Nf4 {[%emt 0:00:22]} 10. Be3 {[%emt 0:01:09]} f5 {[%emt 0:01:35]} 11. exf5 {[%emt 0:01:27]} Rxf5 {[%emt 0:00:14]} 12. c5 {[%emt 0:01:14]} e4 {[%emt 0:03:00]} 13. Nd4 {[%emt 0:02:03]} Nxe2+ {[%emt 0:03:41]} 14. Ncxe2 {[%emt 0:02:45]} Rxd5 {[%emt 0:03:58]} 15. Qb3 {[%emt 0:00:05]} Nf6 {[%emt 0:01:28]} 16. Nf4 {[%emt 0:00:43]} dxc5 {[%emt 0:02:14]} 17. Nxd5 {[%emt 0:01:05]} Nxd5 {[%emt 0:00:24]} 18. bxc5 {[%emt 0:00:42]} Kh8 {[%emt 0:02:15]} 19. Rfd1 {[%emt 0:04:23]} c6 {[%emt 0:02:23]} 20. Rab1 {[%emt 0:08:39]} Qh4 {[%emt 0:07:17]} 21. Re1 {[%emt 0:15:29]} Be5 {[%emt 0:04:14]} 22. g3 {[%emt 0:02:53]} Qh3 {[%emt 0:01:08]} 23. Qc2 {[%emt 0:06:00]} Nf6 {[%emt 0:38:46]} 24. f4 {[%emt 0:18:44]} exf3 {[%emt 0:06:31]} 25. Nxf3 {[%emt 0:00:35]} Bf5 {[%emt 0:01:00]} 26. Qg2 {[%emt 0:03:06]} Qxg2+ {[%emt 0:03:13]} 27. Kxg2 {[%emt 0:00:11]} Bxb1 {[%emt 0:00:08]} 28. Rxb1 {[%emt 0:00:02]} Ng4 {[%emt 0:01:24]} 29. Nxe5 {[%emt 0:00:39]} Nxe3+ {[%emt 0:01:54]} 30. Kf2 {[%emt 0:00:37]} Re8 {[%emt 0:00:40]} 31. Kxe3 {[%emt 0:03:00]} Rxe5+ {[%emt 0:00:09]} 32. Kd4 {[%emt 0:00:19]} Re7 {[%emt 0:00:18]} 33. Rb2 {[%emt 0:02:00]} Kg7 {[%emt 0:00:49]} 34. a4 {[%emt 0:00:30]} a5 {[%emt 0:01:17]} 35. h4 {[%emt 0:00:37]} h5 {[%emt 0:01:33]} 36. Rf2 {[%emt 0:00:57]} Rd7+ {[%emt 0:00:24]} 37. Ke5 {[%emt 0:01:26]} Rd5+ {[%emt 0:02:07]} 38. Ke6 {[%emt 0:00:15]} Rxc5 {[%emt 0:00:10]} 39. Rf7+ {[%emt 0:00:11]} Kh6 {[%emt 0:01:12]} 40. Rxb7 {[%emt 0:00:24]} Rc4 {[%emt 0:03:58]} 41. Rc7 {[%emt 0:02:05]} Rxa4 {[%emt 0:00:27]} 42. Rxc6 {[%emt 0:00:02]} Ra3 {[%emt 0:00:11]} 43. Kf7 {[%emt 0:00:20]} Rxg3 {[%emt 0:00:55]} 44. Ra6 {[%emt 0:00:08]} Rf3+ {[%emt 0:01:37]} 45. Kg8 {[%emt 0:00:23]} Rf4 {[%emt 0:03:13]} 46. Rxa5 {[%emt 0:00:51]} Rxh4 {[%emt 0:00:08]} 0-1

[Event "ONJK-B 2019"]
[Site "Borne"]
[Date "2019.08.06"]
[Round "3.14"]
[White "Olree, Alex"]
[Black "Van Dam, Kars"]
[Result "1-0"]
[ECO "D11"]
[WhiteElo "1411"]
[BlackElo "1024"]
[Annotator "NA"]
[PlyCount "28"]
[EventDate "2019.08.05"]
[EventType "swiss"]
[EventCountry "NED"]
[SourceTitle "playchess.com"]
[Source "ChessBase"]
[SourceQuality "1"]
[TimeControl "5400+30"]

1. d4 {[%emt 0:00:00]} d5 {[%emt 0:00:00]} 2. c4 {[%emt 0:00:00]} c6 {[%emt 0:00:00]} 3. Nf3 {[%emt 0:00:00]} Bf5 {[%emt 0:00:35]} 4. cxd5 {[%emt 0:00:55]} cxd5 {[%emt 0:00:03]} 5. Qb3 {[%emt 0:00:08]} b6 {[%emt 0:00:54]} 6. Nc3 {[%emt 0:00:41]} e6 {[%emt 0:00:04]} 7. Bf4 {[%emt 0:02:44]} Nc6 {[%emt 0:00:11]} 8. e3 {[%emt 0:00:36]} Bd6 {[%emt 0:00:40]} 9. Bb5 {[%emt 0:00:42]} Nge7 {[%emt 0:00:14]} 10. Qa4 {[%emt 0:03:32]} Qc7 {[%emt 0:00:48]} 11. Ne5 {[%emt 0:01:52]} Bxe5 {[%emt 0:00:09]} 12. Bxe5 {[%emt 0:00:02]} Qd7 {[%emt 0:00:36]} 13. Bxg7 {[%emt 0:00:58]} Rg8 {[%emt 0:00:01]} 14. Bf6 {[%emt 0:00:08]} a6 {[%emt 0:01:31]} 1-0